Cogmind - Beta 10.1 @@@ ROGUE MODE // 2020.10.13 @ 20:57:26 Player: CVD-b335 Result: Destroyed by G-73 Enforcer with Phase Gun Performance ------------- Evolutions (6) 3000 Regions Visited (18) 3600 Robots Destroyed (173) 865 Value Destroyed (7959) 7959 Prototype IDs (34) 680 Alien Tech Used (2) 400 Bonus (4035) 4035 TOTAL SCORE: 20539 Bonus ------- High Alert Combat Kills 1005 Follower Combat Kills 510 Entered Garrisons 800 Used RIF Installer 2000 Met Zhirov 300 Friendly Fire -580 Cogmind --------- Core Integrity 0/1150 Matter 300/300 Energy 100/100 System Corruption 3% Temperature Cool (9) Movement Core (300) Ox5 Location -4/Factory Parts ------- > --- POWER (1) -------- (None) > --- PROPULSION (4) --- (None) > --- UTILITY (10) ----- Large Storage Unit Targeting Computer Target Analyzer > --- WEAPON (4) ------- (None) > --- INVENTORY (10) --- Advanced Heat Sink High-capacity Matter Pod (200) Improved Phase Shifter Advanced Hacking Suite Relay Coupler [NC] (23) Relay Coupler [Duelist] (33) Relay Coupler [Duelist] (29) Relay Coupler [Demolisher] (22) Remote Datajack Remote Datajack Peak State ------------ > --- POWER ------------ Heavy Antimatter Reactor > --- PROPULSION ------- Carbon-fiber Leg Carbon-fiber Leg Flexi-carbon Leg Myomer Leg > --- UTILITY ---------- Large Storage Unit Large Storage Unit Large Storage Unit Improved Matter Compressor 0b10 Decoder Chip [Skirmisher] Targeting Computer Target Analyzer Improved Armor Integrity Analyzer Experimental Weapon Shielding Relay Coupler [NC] > --- WEAPON ----------- Improved EM Pulse Cannon Gauss Rifle Coil Gun Advanced Assault Cannon > --- INVENTORY -------- Light Antimatter Reactor Improved Medium Treads Carbon-fiber Leg Advanced Heat Sink High-capacity Matter Pod Kinecellerator Improved Phase Shifter Improved Propulsion Shielding Improved Medium Armor Plating Advanced Hacking Suite Relay Coupler [NC] Relay Coupler [Duelist] Relay Coupler [Duelist] Relay Coupler [Demolisher] Relay Coupler [Demolisher] Proton Cannon Remote Datajack Remote Datajack Greatsword [Rating: 82] Favorites ----------- Power Reinforced Deuterium Engine Engine Reinforced Deuterium Engine Power Core Light Nuclear Core Reactor Heavy Antimatter Reactor Propulsion Carbon-fiber Leg Treads Improved Medium Treads Leg Carbon-fiber Leg Wheel Wheel Hover Unit Antigrav System Flight Unit Improved Flight Unit Utility Large Storage Unit Device Improved Heat Sink Storage Large Storage Unit Processor Targeting Computer Hackware Relay Coupler [NC] Protection Improved Medium Armor Plating Weapon Autogun Energy Gun Improved EM Shotgun Energy Cannon Proton Cannon Ballistic Gun Autogun Ballistic Cannon Advanced Assault Cannon Launcher Rocket Launcher Special Weapon Remote Datajack Slashing Weapon Greatsword Build | -11 -10 -9 -9 -9 -9 -7 -7 -7 -7 -6 -6 -6 -5 -5 -5 -5 -4 -4 ------- Run | Scr Mat Mat Sto Gar Rec Fac Gar Fac Gar Fac Gar Fac Fac Upp Upp Zhi Pro Fac Slots Evolved 12 | . . 2 . . . 4 . . . 2 . . 2 . . . . 2 Power . | . . . . . . . . . . . . . . . . . . . Propulsion 2 | . . . . . . . . . . . . . 1 . . . . 1 Utility 8 | . . 2 . . . 2 . . . 2 . . 1 . . . . 1 Weapon 2 | . . . . . . 2 . . . . . . . . . . . . Parts Attached 183 | . 9 6 28 1 4 8 10 4 9 3 13 36 4 1 . 6 3 38 Power 18 | . 1 1 3 . . . 1 . . . 1 4 . . . 1 . 6 Engine 9 | . . 1 2 . . . 1 . . . 1 4 . . . . . . Core 3 | . 1 . 1 . . . . . . . . . . . . . . 1 Reactor 6 | . . . . . . . . . . . . . . . . 1 . 5 Propulsion 47 | . 2 1 6 . 1 1 1 2 4 . 3 6 3 . . . 2 15 Treads 2 | . . . . . . . . . . . . . . . . . . 2 Leg 26 | . . . . . . . . . . . 3 6 3 . . . 2 12 Wheel 16 | . 2 1 4 . 1 1 1 2 4 . . . . . . . . . Hover 1 | . . . . . . . . . . . . . . . . . . 1 Flight 2 | . . . 2 . . . . . . . . . . . . . . . Utility 47 | . 2 4 8 . . 4 1 . 2 3 2 12 1 . . 2 . 6 Device 18 | . . 1 6 . . 1 . . 2 2 2 2 . . . . . 2 Storage 11 | . 2 2 2 . . 1 . . . . . 3 . . . 1 . . Processor 7 | . . . . . . 1 1 . . . . 3 . . . . . 2 Hackware 2 | . . . . . . . . . . . . 2 . . . . . . Protection 9 | . . 1 . . . 1 . . . 1 . 2 1 . . 1 . 2 Artifact . | . . . . . . . . . . . . . . . . . . . Weapon 71 | . 4 . 11 1 3 3 7 2 3 . 7 14 . 1 . 3 1 11 Energy Gun 8 | . . . 4 . . . . . . . . . . . . . . 4 Energy Cannon 8 | . . . 1 . . . . . . . . 2 . 1 . 1 . 3 Ballistic Gun 41 | . 4 . 2 . 2 3 7 2 3 . 7 7 . . . . 1 3 Ballistic Cannon 5 | . . . 4 . . . . . . . . 1 . . . . . . Launcher 5 | . . . . 1 1 . . . . . . 2 . . . 1 . . Special Weapon 3 | . . . . . . . . . . . . 2 . . . 1 . . Impact Weapon . | . . . . . . . . . . . . . . . . . . . Slashing Weapon 1 | . . . . . . . . . . . . . . . . . . 1 Piercing Weapon . | . . . . . . . . . . . . . . . . . . . Special Melee Weapon . | . . . . . . . . . . . . . . . . . . . Unidentified Prototypes 13 | . . . 6 . . . . . . . . 2 . . . 5 . . Parts Lost 100 | . . 2 3 . . 1 9 . 7 . 7 16 2 . 2 . . 51 Power 10 | . . . 1 . . . . . . . . 2 . . 1 . . 6 Propulsion 35 | . . 1 2 . . 1 1 . 4 . 2 5 1 . . . . 18 Utility 20 | . . 1 . . . . 1 . 1 . 1 4 . . . . . 12 Weapon 35 | . . . . . . . 7 . 2 . 4 5 1 . 1 . . 15 Highest Loss Streak 32 | . . 2 2 . . 1 4 . 3 . 2 5 1 . 2 . . 32 Average Slot Usage (%) 96 | . 90 97 98 100 100 99 96 93 98 99 98 97 92 100 97 93 100 68 Engine 5 | . 6 4 9 11 11 7 6 7 7 6 6 5 5 5 3 . . . Leg 7 | . 16 . . . . . . . . . 6 12 17 17 17 17 17 11 Wheel 8 | . 10 21 21 22 22 14 12 8 14 13 5 . . . . . . . Device 5 | . . 6 1 . . 1 4 . 3 19 12 7 5 5 5 1 . 1 Storage 24 | . 19 33 41 44 44 28 23 23 23 20 20 20 17 17 17 20 23 15 Processor 11 | . . . . . . 7 9 15 15 13 13 17 17 17 17 17 17 22 Hackware 1 | . . . . . . . . . . . . 3 5 5 5 5 5 3 Protection 3 | . . 1 1 . . 7 7 7 2 . 6 4 . 5 5 5 5 . Energy Cannon 1 | . . . . . . . . . . . . . . 5 5 6 5 1 Ballistic Gun 18 | . 24 22 9 11 11 30 29 30 29 26 25 22 15 11 9 5 9 4 Ballistic Cannon 1 | . . . 8 4 . . . . . . . . 5 5 5 5 5 . Naked Turns . | . . . . . . . . . . . . . . . . . . . Heaviest Build 97 | 10 43 75 68 66 66 85 78 78 78 91 94 94 89 97 97 97 94 97 Greatest Support 80 | 20 26 26 26 20 26 32 32 26 20 20 38 40 50 45 45 45 60 80 Greatest Overweight (x) 24 | . 2 3 6 3 3 4 4 4 7 4 9 24 1 2 2 2 2 24 Average Overweight (x) 2 | . . 1 2 3 2 2 2 3 3 3 4 2 1 2 1 1 1 1 Largest Inventory Capacity 28 | . 16 28 22 22 22 28 22 22 22 22 22 22 22 22 22 22 22 22 Average Capacity 21 | . 10 22 22 22 22 26 22 22 22 22 22 22 22 22 22 22 22 20 Most Carried 22 | . 16 22 22 22 22 21 22 22 22 22 22 22 19 18 20 22 22 21 Average Carried 19 | . 8 20 21 22 21 19 20 20 20 20 21 19 17 16 18 21 21 15 Final Capacity 22 | 6 16 22 22 22 22 22 22 22 22 22 22 22 22 22 22 22 22 10 Final Carried 22 | 6 16 22 22 22 22 21 18 22 22 22 22 19 17 18 20 22 22 10 Class Distribution -------------------- 24% | Bothacker-Gunner 16% | Hauler-Mutant 13% | Scavenger-Tank 12% | Scavenger-Gunner 10% | Bothacker-Mutant 9% | Hauler-Gunner 4% | Commander-Mutant 3% | Mutant Dominant Class ---------------- Mutant | -10/Materials Hauler-Mutant | -9/Materials Hauler-Mutant | -9/Storage Hauler-Mutant | -9/Garrison Commander-Mutant | -9/Recycling Hauler-Tank | -7/Factory Hauler-Gunner | -7/Garrison Scavenger-Gunner | -7/Factory Scavenger-Gunner | -7/Garrison Scavenger-Gunner | -6/Factory Scavenger-Tank | -6/Garrison Bothacker-Gunner | -6/Factory Bothacker-Gunner | -5/Factory Bothacker-Gunner | -5/Upper Caves Bothacker-Gunner | -5/Upper Caves Bothacker-Mutant | -5/Zhirov Bothacker-Gunner | -4/Proximity Caves Bothacker-Mutant | -4/Factory Resources | -11 -10 -9 -9 -9 -9 -7 -7 -7 -7 -6 -6 -6 -5 -5 -5 -5 -4 -4 ----------- Run | Scr Mat Mat Sto Gar Rec Fac Gar Fac Gar Fac Gar Fac Fac Upp Upp Zhi Pro Fac Matter Collected 7657 | 183 149 391 714 39 309 224 759 184 662 332 1005 1437 71 23 113 . 612 450 Remotely . | . . . . . . . . . . . . . . . . . . . Salvage Created 7635 | . 229 395 923 14 121 42 502 182 744 449 973 1605 71 . 36 . 488 861 Parts 369 | . 15 19 65 5 21 2 22 2 33 8 52 75 2 . . . 10 38 Haulers Intercepted 4 | . 1 . 2 . . . . . . . . 1 . . . . . . Recyclers Shooed 6 | . 2 . 1 . 1 . . 1 . . . 1 . . . . . . Parts Field Recycled . | . . . . . . . . . . . . . . . . . . . Retrieved Matter . | . . . . . . . . . . . . . . . . . . . Parts Self-Destructed 8 | . . . . . . . . . . . . . . . 3 . 5 . Prevented 4 | . . . . . . . . . . . . . . . 1 . 3 . Kills | -11 -10 -9 -9 -9 -9 -7 -7 -7 -7 -6 -6 -6 -5 -5 -5 -5 -4 -4 ------- Run | Scr Mat Mat Sto Gar Rec Fac Gar Fac Gar Fac Gar Fac Fac Upp Upp Zhi Pro Fac Combat Hostiles Destroyed 145 | . 4 6 21 4 9 1 10 1 19 5 18 24 1 . 1 . 8 13 Melee 1 | . . . . . . . . . . . . . . . . . . 1 Guns 112 | . 4 6 13 . 2 1 10 1 19 5 18 22 1 . . . 2 8 Cannons 12 | . . . 6 . . . . . . . . . . . 1 . 2 3 AOE 19 | . . . 1 4 7 . . . . . . 2 . . . . 4 1 Classes Destroyed 14 | . 2 2 3 . 1 1 . . . 1 3 1 . . . . . . Worker 8 | . . . 4 . . . . 2 . 1 . 1 . . . . . . Builder 4 | . . . . . 1 . . . . . . 2 . . . . . 1 Hauler 4 | . 1 . 2 . . . . . . . . 1 . . . . . . Recycler 6 | . . 1 . . 1 . . 1 . 1 . 2 . . . . . . Drone 12 | . . . 4 . 8 . . . . . . . . . . . . . Watcher 2 | . . . . . . . . . . 1 . 1 . . . . . . Swarmer 27 | . . . 7 4 . . . . 10 . 3 3 . . . . . . Grunt 69 | . 4 2 9 . 1 . 7 1 8 5 7 11 . . 1 . 5 8 Brawler 2 | . . . . . . . . . . . 1 1 . . . . . . Duelist 3 | . . . . . . . . . . . 1 2 . . . . . . Sentry 20 | . . 4 5 . . . . . 1 . 4 2 1 . . . 1 2 Specialist 1 | . . . . . . . . . . . 1 . . . . . . . Hunter 11 | . . . . . . 1 3 . . . 1 2 . . . . 2 2 Programmer 4 | . . . . . . . . . . . . 3 . . . . . 1 Best Kill Streak 9 | . 2 4 9 4 4 1 4 2 6 3 5 5 1 . 1 . 5 5 Combat Bots Only 7 | . 2 4 7 4 3 1 4 1 6 2 5 3 1 . 1 . 5 5 Max Kills in Single Turn 3 | . 1 1 2 3 2 1 2 1 2 1 1 2 1 . 1 . 2 1 Gunslinging 1 | . . . . . . . . . 1 . . 1 . . . . . . Exploded 3 | . . . 1 3 1 . . . . . . 1 . . . . 1 1 Melee 1 | . . . . . . . . . . . . . . . . . . 1 Uniques/NPCs Destroyed . | . . . . . . . . . . . . . . . . . . . Combat | -11 -10 -9 -9 -9 -9 -7 -7 -7 -7 -6 -6 -6 -5 -5 -5 -5 -4 -4 -------- Run | Scr Mat Mat Sto Gar Rec Fac Gar Fac Gar Fac Gar Fac Fac Upp Upp Zhi Pro Fac Damage Taken 15754 | . 125 322 726 40 106 315 1095 . 1163 336 972 3507 346 . 115 . 523 6063 Core 2454 | . 10 60 109 . 26 37 133 . 248 48 109 430 25 . . . 64 1155 Absorbed by Shields 714 | . . 60 . . . . 138 . 7 250 259 . . . . . . . Core Remaining (%) 67 | 100 96 . . . 51 . . . 40 . . 30 . . . . 85 . Volleys Fired 483 | . 14 23 79 2 23 7 44 9 39 23 46 83 7 . 5 4 11 64 Largest 4 | . 2 2 2 1 2 4 4 4 4 4 4 4 4 . 2 1 4 4 Hottest 188 | . 46 46 90 33 56 92 107 102 106 103 114 164 132 . 76 30 178 188 Shots Fired 1395 | . 28 46 153 2 45 28 169 36 153 92 172 277 22 . 10 4 40 118 Gun 1228 | . 28 46 103 . 26 28 169 36 153 92 172 256 15 . 5 . 12 87 Cannon 126 | . . . 50 . . . . . . . . 11 7 . 5 . 22 31 Launcher 32 | . . . . 2 19 . . . . . . 5 . . . . 6 . Special 9 | . . . . . . . . . . . . 5 . . . 4 . . Kinetic 1254 | . 28 46 108 . 26 28 169 36 153 92 172 256 22 . 10 . 23 85 Thermal 16 | . . . . . . . . . . . . . . . . . . 16 Explosive 32 | . . . . 2 19 . . . . . . 5 . . . . 6 . Electromagnetic 84 | . . . 45 . . . . . . . . 11 . . . . 11 17 Robot Hit Streak 20 | . 7 20 14 3 1 8 16 10 11 18 13 13 13 . 4 2 7 18 Robot Miss Streak 14 | . 2 1 7 . 14 4 4 4 6 4 7 8 3 . 1 1 2 3 Penetration Max 1 | . . . . . . . 1 . . . . 1 . . 1 . . 1 Secondary Targets 17 | . . . 1 . . . 1 . 7 . 3 4 . . . . . 1 Max Gunslinging Chain 2 | . . . 1 . . . 1 . 2 . 1 1 . . . . . 1 Shots Hit Robots 905 | . 19 39 79 2 5 19 122 19 84 71 133 164 19 . 7 3 29 91 Core Hits 466 | . 9 13 44 13 17 5 46 6 33 41 79 87 9 . 2 . 21 41 Critical Hits 32 | . . . 1 . . 1 4 1 . . 2 13 1 . 1 . 1 7 Critical Kills 12 | . . . 1 . . . 1 . . . 2 5 . . . . . 3 Critical Parts Destroyed 20 | . . . . . . 1 3 1 . . . 8 1 . 1 . 1 4 Melee Attacks 5 | . . . . . . . . . . . . . . . . . . 5 Impact . | . . . . . . . . . . . . . . . . . . . Slashing 5 | . . . . . . . . . . . . . . . . . . 5 Piercing . | . . . . . . . . . . . . . . . . . . . Sneak Attacks . | . . . . . . . . . . . . . . . . . . . Combat Hostiles . | . . . . . . . . . . . . . . . . . . . Follow-up Attacks . | . . . . . . . . . . . . . . . . . . . Damage Inflicted 18012 | . 214 558 1582 429 858 218 1791 283 1404 1283 1785 3639 446 . 214 . 1082 2226 Guns 13580 | . 214 558 1008 . 49 218 1791 283 1404 1283 1785 3001 355 . 92 . 187 1352 Cannons 1783 | . . . 433 . . . . . . . . 63 91 . 122 . 486 588 Explosions 2498 | . . . 141 429 809 . . . . . . 575 . . . . 409 135 Melee 151 | . . . . . . . . . . . . . . . . . . 151 Ramming . | . . . . . . . . . . . . . . . . . . . Kinetic 13774 | . 214 558 897 . 49 218 1791 283 1404 1283 1785 3001 446 . 214 . 363 1268 Thermal 561 | . . . 141 . . . . . . . . . . . . . . 420 Explosive 2222 | . . . . 429 809 . . . . . . 575 . . . . 409 . Electromagnetic 1304 | . . . 544 . . . . . . . . 63 . . . . 310 387 Impact . | . . . . . . . . . . . . . . . . . . . Slashing 151 | . . . . . . . . . . . . . . . . . . 151 Piercing . | . . . . . . . . . . . . . . . . . . . Highest Corruption 9 | . . . . . . . . . . . . 9 . . . . 2 3 Average Corruption 6 | . . . . . . . . . . . . 7 . . . . 2 2 Corruption Purged . | . . . . . . . . . . . . . . . . . . . Effects 90 | . . . . . . . . . . . . 78 . . . . . 12 Message Errors 17 | . . . . . . . . . . . . 15 . . . . . 2 Matter Fused 14 | . . . . . . . . . . . . 12 . . . . . 2 Heat Flow Errors 6 | . . . . . . . . . . . . 3 . . . . . 3 Energy Discharges 12 | . . . . . . . . . . . . 10 . . . . . 2 Parts Rejected 2 | . . . . . . . . . . . . 2 . . . . . . Data Loss (minor) 10 | . . . . . . . . . . . . 10 . . . . . . Targeting Errors 27 | . . . . . . . . . . . . 25 . . . . . 2 Weapon Failures 2 | . . . . . . . . . . . . 1 . . . . . 1 Overload Shots . | . . . . . . . . . . . . . . . . . . . Overflow Damage 194 | . . . 14 . 96 . . . . . . 11 23 . . . 14 36 Projectiles 61 | . . . 11 . . . . . . . . . 23 . . . 13 14 Explosions 111 | . . . 3 . 96 . . . . . . 11 . . . . 1 . Melee 22 | . . . . . . . . . . . . . . . . . . 22 Knockbacks 13 | . . . 8 . . . . . . . . . . . 1 . 2 2 Impact . | . . . . . . . . . . . . . . . . . . . Kinetic 11 | . . . 6 . . . . . . . . . . . 1 . 2 2 Secondary 2 | . . . 2 . . . . . . . . . . . . . . . Self-Inflicted Damage 219 | . . . 70 19 82 . . . . . . . . . . . 48 . Shots 7 | . . . 2 1 3 . . . . . . . . . . . 1 . Rammed . | . . . . . . . . . . . . . . . . . . . Targets Rammed . | . . . . . . . . . . . . . . . . . . . Kicked . | . . . . . . . . . . . . . . . . . . . Crushed . | . . . . . . . . . . . . . . . . . . . Highest Temperature 406 | . 21 22 326 . 12 64 92 60 267 5 25 406 145 . . . 78 229 Average Temperature 66 | . 9 7 58 . 5 31 32 27 82 3 12 170 84 . . . 27 42 Received Heat Transfer 3658 | . 54 121 186 . 12 36 207 . 360 149 202 1164 45 . 54 . 66 1002 Effects 8 | . . . . . . . . . 3 . . 5 . . . . . . Shutdowns 1 | . . . . . . . . . . . . 1 . . . . . . Energy Bleed 1 | . . . . . . . . . . . . 1 . . . . . . Interference 6 | . . . . . . . . . 3 . . 3 . . . . . . Siege Activations . | . . . . . . . . . . . . . . . . . . . Robots Corrupted 1 | . . . 1 . . . . . . . . . . . . . . . Combat Hostiles 1 | . . . 1 . . . . . . . . . . . . . . . Parts Fried 4 | . . . 4 . . . . . . . . . . . . . . . Impact Corruptions . | . . . . . . . . . . . . . . . . . . . Robots Melted . | . . . . . . . . . . . . . . . . . . . Combat Hostiles . | . . . . . . . . . . . . . . . . . . . Parts Melted . | . . . . . . . . . . . . . . . . . . . Heat Transferred 923 | . . . 250 . . . . . . . . . . . . . . 673 Parts Sabotaged . | . . . . . . . . . . . . . . . . . . . Parts Stolen . | . . . . . . . . . . . . . . . . . . . Parts Stripped . | . . . . . . . . . . . . . . . . . . . Power Chain Reactions 3 | . . . 3 . . . . . . . . . . . . . . . Missiles Intercepted . | . . . . . . . . . . . . . . . . . . . Alert | -11 -10 -9 -9 -9 -9 -7 -7 -7 -7 -6 -6 -6 -5 -5 -5 -5 -4 -4 ------- Run | Scr Mat Mat Sto Gar Rec Fac Gar Fac Gar Fac Gar Fac Fac Upp Upp Zhi Pro Fac Peak Influence 1176 | . 162 287 492 276 249 936 1176 746 772 538 717 760 408 . . . . 267 Initial 931 | . . . 120 186 124 931 630 617 415 405 171 375 360 . . . . . Average 447 | . 100 114 289 240 100 916 878 631 609 405 514 509 370 . . . . 103 Maximum Alert Level 4 | . . 1 2 1 1 3 4 3 3 2 3 3 2 . . . . 1 Low Security (%) 22 | . 100 72 30 39 88 . . . . . 1 . . . . . . 71 Level 1 24 | . . 27 56 60 11 . . . 2 15 24 37 84 . . . . 28 Level 2 34 | . . . 12 . . . 11 88 73 84 58 50 15 . . . . . Level 3 16 | . . . . . . 100 66 11 23 . 15 11 . . . . . . Level 4 2 | . . . . . . . 22 . . . . . . . . . . . Level 5 . | . . . . . . . . . . . . . . . . . . . High Security . | . . . . . . . . . . . . . . . . . . . Max Security . | . . . . . . . . . . . . . . . . . . . Squads Dispatched 31 | . 2 1 8 . 1 1 . 4 . 4 . 5 1 . . . . 4 Investigation 2 | . . . . . . 1 . . . 1 . . . . . . . . Extermination 4 | . . . . . . . . 1 . . . 3 . . . . . . Reinforcement 15 | . 2 1 4 . 1 . . 1 . 2 . 2 1 . . . . 1 Assault 1 | . . . . . . . . 1 . . . . . . . . . . Garrison 9 | . . . 4 . . . . 1 . 1 . . . . . . . 3 Intercept . | . . . . . . . . . . . . . . . . . . . Construction Impeded 3 | . . . . . 1 . . . . . . 1 . . . . . 1 Haulers Reinforced 2 | . . . . . . . . . . 1 . 1 . . . . . . Stealth | -11 -10 -9 -9 -9 -9 -7 -7 -7 -7 -6 -6 -6 -5 -5 -5 -5 -4 -4 --------- Run | Scr Mat Mat Sto Gar Rec Fac Gar Fac Gar Fac Gar Fac Fac Upp Upp Zhi Pro Fac Distress Signals 8 | . . 1 3 . . . . . . 1 . 1 1 . . . . 1 Communications Jammed . | . . . . . . . . . . . . . . . . . . . Distress Signals . | . . . . . . . . . . . . . . . . . . . Times Spotted 239 | . 10 12 27 4 25 3 22 4 22 13 18 39 3 . 4 . 10 23 Peak Tracking Total 9 | . 3 5 7 4 4 2 6 3 9 4 7 6 2 . 1 . 3 4 Tactical Retreats 17 | . . . 1 . . . 4 . 2 1 1 3 . . 1 . 1 3 Traps | -11 -10 -9 -9 -9 -9 -7 -7 -7 -7 -6 -6 -6 -5 -5 -5 -5 -4 -4 ------- Run | Scr Mat Mat Sto Gar Rec Fac Gar Fac Gar Fac Gar Fac Fac Upp Upp Zhi Pro Fac Traps Triggered 16 | . 1 1 1 1 . . 3 1 . 2 5 . 1 . . . . . Indirectly . | . . . . . . . . . . . . . . . . . . . Trap Hack Attempts . | . . . . . . . . . . . . . . . . . . . Triggered . | . . . . . . . . . . . . . . . . . . . Disarmed . | . . . . . . . . . . . . . . . . . . . Reprogrammed . | . . . . . . . . . . . . . . . . . . . Reused . | . . . . . . . . . . . . . . . . . . . Traps Extracted . | . . . . . . . . . . . . . . . . . . . Installed . | . . . . . . . . . . . . . . . . . . . Triggered 2 | . . . . . . . . . . . . . . . 2 . . . Machines | -11 -10 -9 -9 -9 -9 -7 -7 -7 -7 -6 -6 -6 -5 -5 -5 -5 -4 -4 ---------- Run | Scr Mat Mat Sto Gar Rec Fac Gar Fac Gar Fac Gar Fac Fac Upp Upp Zhi Pro Fac Machines Disabled 39 | . . 1 7 . 3 . 3 1 1 . 4 16 . . . . . 3 Max in Single Turn 5 | . . 1 1 . 1 . 1 1 1 . 2 5 . . . . . 3 Garrison Access 1 | . . . . . . . . . . . . . . . . . . 1 Garrison Relay 4 | . . . . . . . 1 . 1 . 2 . . . . . . . Phase Generator 2 | . . . . . . . 1 . . . 1 . . . . . . . Machines Sabotaged . | . . . . . . . . . . . . . . . . . . . Garrisons Compromised . | . . . . . . . . . . . . . . . . . . . Overloaded Fab Kills . | . . . . . . . . . . . . . . . . . . . Fab Network Shutdowns . | . . . . . . . . . . . . . . . . . . . Hacking | -11 -10 -9 -9 -9 -9 -7 -7 -7 -7 -6 -6 -6 -5 -5 -5 -5 -4 -4 --------- Run | Scr Mat Mat Sto Gar Rec Fac Gar Fac Gar Fac Gar Fac Fac Upp Upp Zhi Pro Fac Machines Accessed 31 | . . 3 3 . 6 1 . 2 . 3 . 3 . . . 9 . 1 Terminals 14 | . . 2 2 . 6 . . . . 2 . 2 . . . . . . Fabricators 1 | . . . . . . . . 1 . . . . . . . . . . Repair Stations . | . . . . . . . . . . . . . . . . . . . Recycling Units 1 | . . . . . . . . . . . . 1 . . . . . . Scanalyzers 1 | . . 1 . . . . . . . . . . . . . . . . Garrison Access 5 | . . . 1 . . 1 . 1 . 1 . . . . . . . 1 Total Hacks 101 | . . 9 5 . 20 1 . 5 . 9 . 3 . . . 48 . 1 Successful 79 | . . 8 2 . 9 1 . 3 . 6 . 1 . . . 48 . 1 Failed 22 | . . 1 3 . 11 . . 2 . 3 . 2 . . . . . . Catastrophic 3 | . . . . . 1 . . . . 1 . 1 . . . . . . Database Lockouts . | . . . . . . . . . . . . . . . . . . . Manual 31 | . . 5 3 . 15 . . . . 6 . 2 . . . . . . Terminals 38 | . . 5 3 . 20 . . . . 8 . 2 . . . . . . Fabricators 4 | . . . . . . . . 4 . . . . . . . . . . Repair Stations . | . . . . . . . . . . . . . . . . . . . Recycling Units 1 | . . . . . . . . . . . . 1 . . . . . . Scanalyzers 4 | . . 4 . . . . . . . . . . . . . . . . Garrison Access 6 | . . . 2 . . 1 . 1 . 1 . . . . . . . 1 Terminal Hacks 59 | . . 1 1 . 6 . . . . 3 . . . . . 48 . . Record 39 | . . . . . 3 . . . . . . . . . . 36 . . Part Schematic 4 | . . . . . . . . . . . . . . . . 4 . . Robot Analysis 4 | . . . . . . . . . . . . . . . . 4 . . Prototype ID Bank 5 | . . . . . 1 . . . . . . . . . . 4 . . Open Door 1 | . . . 1 . . . . . . . . . . . . . . . Unreport Threat 3 | . . . . . 2 . . . . 1 . . . . . . . . Locate Traps 1 | . . . . . . . . . . 1 . . . . . . . . Zone Layout 2 | . . 1 . . . . . . . 1 . . . . . . . . Fabricator Hacks 2 | . . . . . . . . 2 . . . . . . . . . . Load Schematic 1 | . . . . . . . . 1 . . . . . . . . . . Build 1 | . . . . . . . . 1 . . . . . . . . . . Repair Station Hacks . | . . . . . . . . . . . . . . . . . . . Recycling Unit Hacks 1 | . . . . . . . . . . . . 1 . . . . . . Retrieve Matter 1 | . . . . . . . . . . . . 1 . . . . . . Scanalyzer 4 | . . 4 . . . . . . . . . . . . . . . . Insert Component 2 | . . 2 . . . . . . . . . . . . . . . . Analyze 2 | . . 2 . . . . . . . . . . . . . . . . Garrison Access Hacks 5 | . . . 1 . . 1 . 1 . 1 . . . . . . . 1 Unlock Access 4 | . . . 1 . . 1 . 1 . 1 . . . . . . . . Seal Access 1 | . . . . . . . . . . . . . . . . . . 1 Unauthorized Hacks 8 | . . 3 . . 3 . . . . 2 . . . . . . . . Terminals 8 | . . 3 . . 3 . . . . 2 . . . . . . . . Track 2 | . . 1 . . . . . . . 1 . . . . . . . . Botnet 6 | . . 2 . . 3 . . . . 1 . . . . . . . . Fabricators . | . . . . . . . . . . . . . . . . . . . Repair Stations . | . . . . . . . . . . . . . . . . . . . Recycling Units . | . . . . . . . . . . . . . . . . . . . Scanalyzers . | . . . . . . . . . . . . . . . . . . . Garrison Access . | . . . . . . . . . . . . . . . . . . . Data Cores Recovered . | . . . . . . . . . . . . . . . . . . . Used . | . . . . . . . . . . . . . . . . . . . Hacking Detections 18 | . . 2 3 . 6 . . 2 . 2 . 3 . . . . . . Full Trace Events 1 | . . . . . 1 . . . . . . . . . . . . . Feedback Events . | . . . . . . . . . . . . . . . . . . . Feedback Blocked . | . . . . . . . . . . . . . . . . . . . Robot Schematics Acquired . | . . . . . . . . . . . . . . . . . . . Robots Built . | . . . . . . . . . . . . . . . . . . . Matter . | . . . . . . . . . . . . . . . . . . . Time . | . . . . . . . . . . . . . . . . . . . Total Robot Build Rating . | . . . . . . . . . . . . . . . . . . . Part Schematics Acquired 6 | . . 2 . . . . . . . . . . . . . 4 . . Parts Built 3 | . . . . . . . . 3 . . . . . . . . . . Matter 102 | . . . . . . . . 102 . . . . . . . . . . Time 25 | . . . . . . . . 25 . . . . . . . . . . Total Part Build Rating 3 | . . . . . . . . 3 . . . . . . . . . . Parts Repaired . | . . . . . . . . . . . . . . . . . . . Time . | . . . . . . . . . . . . . . . . . . . Parts Recycled . | . . . . . . . . . . . . . . . . . . . Recycled Matter . | . . . . . . . . . . . . . . . . . . . Retrieved Matter 405 | . . . . . . . . . . . . 405 . . . . . . Retrieved Components . | . . . . . . . . . . . . . . . . . . . Parts Scanalyzed 2 | . . 2 . . . . . . . . . . . . . . . . Part Schematics Acquired 2 | . . 2 . . . . . . . . . . . . . . . . Parts Damaged . | . . . . . . . . . . . . . . . . . . . Bothacking | -11 -10 -9 -9 -9 -9 -7 -7 -7 -7 -6 -6 -6 -5 -5 -5 -5 -4 -4 ------------ Run | Scr Mat Mat Sto Gar Rec Fac Gar Fac Gar Fac Gar Fac Fac Upp Upp Zhi Pro Fac Used RIF Installer 4 | . . . . 1 . . 1 . 1 . 1 . . . . . . . Hotswap 1 | . . . . . . . . . 1 . . . . . . . . . Structural Interface 1 | . . . . . . . 1 . . . . . . . . . . . Autooverride 1 | . . . . . . . . . . . 1 . . . . . . . Robots Hacked 8 | . . . . . . . . . . . . 5 . . . 3 . . Non-combat 2 | . . . . . . . . . . . . 2 . . . . . . Combat 6 | . . . . . . . . . . . . 3 . . . 3 . . Autooverrided 1 | . . . . . . . . . . . . 1 . . . . . . Robot Hacks Applied 8 | . . . . . . . . . . . . 5 . . . 3 . . parse_system 4 | . . . . . . . . . . . . 1 . . . 3 . . start_evac 1 | . . . . . . . . . . . . 1 . . . . . . mark_security 1 | . . . . . . . . . . . . 1 . . . . . . overwrite_iff 1 | . . . . . . . . . . . . 1 . . . . . . formatsys_high 1 | . . . . . . . . . . . . 1 . . . . . . Relay Couplers Released 16 | . . . . . . . 4 . 4 . 8 . . . . . . . Machine Destruction 16 | . . . . . . . 4 . 4 . 8 . . . . . . . Attached 2 | . . . . . . . . . . . . 2 . . . . . . Robots Rewired 15 | . . . 1 . 7 . 7 . . . . . . . . . . . Allies Hacked . | . . . . . . . . . . . . . . . . . . . Hacks Repelled . | . . . . . . . . . . . . . . . . . . . Allies | -11 -10 -9 -9 -9 -9 -7 -7 -7 -7 -6 -6 -6 -5 -5 -5 -5 -4 -4 -------- Run | Scr Mat Mat Sto Gar Rec Fac Gar Fac Gar Fac Gar Fac Fac Upp Upp Zhi Pro Fac Total Allies 17 | . . . 1 . 7 . 7 . . . . 2 . . . . . . Largest Group 7 | . . . 1 . 7 4 5 5 3 . . 2 . . . . . . Highest-Rated Group 118 | . . . 6 . 106 60 118 117 64 . . 58 . . . . . . Highest-Rated Ally 34 | . . . 6 . 34 21 32 32 32 . . 29 . . . . . . Total Orders 2 | . . . 2 . . . . . . . . . . . . . . . EXPLORE 2 | . . . 2 . . . . . . . . . . . . . . . Ally Attacks 185 | . . . . . 101 6 37 24 4 . . 13 . . . . . . Total Damage 2922 | . . . . . 1368 132 803 408 55 . . 156 . . . . . . Kills 51 | . . . . . 33 1 10 5 1 . . 1 . . . . . . Allies Corrupted 3 | . . . 3 . . . . . . . . . . . . . . . Allies Melted . | . . . . . . . . . . . . . . . . . . . Intel | -11 -10 -9 -9 -9 -9 -7 -7 -7 -7 -6 -6 -6 -5 -5 -5 -5 -4 -4 ------- Run | Scr Mat Mat Sto Gar Rec Fac Gar Fac Gar Fac Gar Fac Fac Upp Upp Zhi Pro Fac Robot Analysis Total 4 | . . . . . . . . . . . . . . . . 4 . . Derelict Logs Recovered 5 | . . . . . . . . . . . . . . 2 2 . 1 . Drone Launches 14 | . . . 14 . . . . . . . . . . . . . . . Drone Recoveries 2 | . . . 2 . . . . . . . . . . . . . . . Decoded 0b10 Intel 7 | . . . . . . . . . . . . . . . . . . 7 Patrols 4 | . . . . . . . . . . . . . . . . . . 4 Reinforcements 1 | . . . . . . . . . . . . . . . . . . 1 Guards 2 | . . . . . . . . . . . . . . . . . . 2 Exploration | -11 -10 -9 -9 -9 -9 -7 -7 -7 -7 -6 -6 -6 -5 -5 -5 -5 -4 -4 ------------- Run | Scr Mat Mat Sto Gar Rec Fac Gar Fac Gar Fac Gar Fac Fac Upp Upp Zhi Pro Fac Turns Passed 12578 | . 416 397 1215 123 910 227 1146 442 621 467 1434 2323 163 260 718 648 551 517 Spaces Moved 7259 | 1 301 285 730 101 610 153 728 281 421 299 759 1085 88 142 403 379 326 167 Core 7 | . . . . . . . . . . . . 1 . . . . . 6 Treads 13 | . . . . . . . . . . . . . . . . . . 13 Legs 3002 | 1 155 . . . . . . . . . 276 1084 88 142 403 379 326 148 Wheels 4237 | . 146 285 730 101 610 153 728 281 421 299 483 . . . . . . . Hover . | . . . . . . . . . . . . . . . . . . . Flight . | . . . . . . . . . . . . . . . . . . . Fastest Speed 100 | 120 100 100 110 110 110 110 120 110 110 110 120 150 150 180 150 150 150 120 Average Speed 140 | 120 110 109 111 110 110 119 124 133 111 119 158 181 150 180 172 165 155 168 Slowest Speed 1250 | 120 180 130 140 110 110 140 140 140 150 120 240 1250 150 180 180 180 180 1250 Overloaded Moves . | . . . . . . . . . . . . . . . . . . . Propulsion Burnouts . | . . . . . . . . . . . . . . . . . . . Robots Hopped . | . . . . . . . . . . . . . . . . . . . Cave-ins Triggered . | . . . . . . . . . . . . . . . . . . . Teleports 1 | . . . . . . . . . . . . . . . . 1 . . Exploration Rate (%) 38 | 2 44 28 86 31 99 5 84 8 56 8 66 20 3 32 57 62 44 3 Regions Visited 18 Branch Regions 6 Pre-discovered Areas 5 | . . . . . . . . . . . . . . 1 . 3 1 . Known Exits Taken 4 | . . . 1 . . 1 . 1 . 1 . . . . . . . . Unknown Exits Taken 10 | 1 1 1 . . 1 . . . . . . 1 1 1 1 1 1 . Scrap Searched 2 | . . . . . . . . . . . . . . 1 1 . . . Spaces Dug . | . . . . . . . . . . . . . . . . . . . Terrain Destroyed 521 | . . . 17 3 126 . 55 . 2 . 77 153 4 . 1 . 49 34 Melee . | . . . . . . . . . . . . . . . . . . . Projectile 38 | . . . 4 . . . . . 2 . . 19 4 . 1 . 3 5 AOE 483 | . . . 13 3 126 . 55 . . . 77 134 . . . . 46 29 Terrain Rammed . | . . . . . . . . . . . . . . . . . . . Walls Destroyed . | . . . . . . . . . . . . . . . . . . . Machines Disabled . | . . . . . . . . . . . . . . . . . . . Actions | -11 -10 -9 -9 -9 -9 -7 -7 -7 -7 -6 -6 -6 -5 -5 -5 -5 -4 -4 --------- Run | Scr Mat Mat Sto Gar Rec Fac Gar Fac Gar Fac Gar Fac Fac Upp Upp Zhi Pro Fac Total 8723 | . 365 332 991 110 809 186 885 334 496 367 901 1262 103 147 417 397 346 275 Wait 380 | . 9 5 107 . 98 13 35 2 19 25 19 32 4 3 8 . . 1 Move 7237 | . 300 284 729 99 609 152 726 280 419 298 757 1084 87 141 402 378 325 167 Hop . | . . . . . . . . . . . . . . . . . . . Pick Up 104 | . 17 9 9 . 1 3 8 15 7 5 11 10 . 2 2 3 2 . Fast Attach 81 | . 6 5 15 . . 1 2 1 1 1 5 13 1 . . 3 1 26 Attach 75 | . 2 1 7 . 1 7 8 2 7 2 3 17 3 1 . 3 . 11 Detach 24 | . 3 1 4 . . 3 1 . . 1 1 7 1 . . 2 . . Swap 29 | . 1 . 6 1 3 . . 1 1 . 5 6 . . . 2 2 1 Drop 94 | . 13 4 22 . 2 . 5 12 3 4 14 10 . . . . 5 . Fire 483 | . 14 23 79 2 23 7 44 9 39 23 46 83 7 . 5 4 11 64 Melee 5 | . . . . . . . . . . . . . . . . . . 5 Ram . | . . . . . . . . . . . . . . . . . . . Kick . | . . . . . . . . . . . . . . . . . . . Crush . | . . . . . . . . . . . . . . . . . . . Escape Stasis 92 | . . . . 8 . . 24 12 . 8 40 . . . . . . . Rewire 119 | . . . 13 . 72 . 32 . . . . . . . . 2 . . Trap . | . . . . . . . . . . . . . . . . . . . Miscellaneous . | . . . . . . . . . . . . . . . . . . . Route ------- -11/Scrapyard -10/Materials -9/Materials -9/Storage -9/Garrison -9/Recycling -7/Factory (discovered 2 exits: [*Low] / Gar) -7/Garrison (discovered 3 exits: *Fac x3) -7/Factory -7/Garrison -6/Factory -6/Garrison -6/Factory -5/Factory -5/Upper Caves -5/Upper Caves -5/Zhirov -4/Proximity Caves -4/Factory History --------- Turn | Location | Event 1 | -11/Scrapyard | Discovered new exit (range 0) 1 | -11/Scrapyard | Entered Materials 230 | -10/Materials | Discovered new exit (range 16) 310 | -10/Materials | Build established: Mutant 417 | -10/Materials | Entered another Materials area 417 | -9/Materials | Evolved 2 slots: Utility x2 690 | -9/Materials | Discovered new exit (range 16) 744 | -9/Materials | Build established: Hauler-Mutant 814 | -9/Materials | Entered Storage 1132 | -9/Storage | Garrison activated, responded to threat 1297 | -9/Storage | Garrison activated, responded to threat 1485 | -9/Storage | Destroyed 7 combat bots 2028 | -9/Storage | Identified exit to Garrison 2029 | -9/Storage | Entered Garrison 2076 | -9/Garrison | Triggered checkpoint 2124 | -9/Garrison | Discovered new exit (range 14) 2146 | -9/Garrison | Installed Relay Interface Framework 2152 | -9/Garrison | Entered Recycling 2255 | -9/Recycling | Spotter reported a threat 2257 | -9/Recycling | Spotter reported a threat 2257 | -9/Recycling | Spotter reported a threat 2259 | -9/Recycling | Spotter reported a threat 2293 | -9/Recycling | Spotter reported a threat 2308 | -9/Recycling | Spotter reported a threat 2310 | -9/Recycling | Spotter reported a threat 2310 | -9/Recycling | Spotter reported a threat 2324 | -9/Recycling | Spotter reported a threat 2338 | -9/Recycling | Spotter reported a threat 2361 | -9/Recycling | Spotter reported a threat 2363 | -9/Recycling | Spotter reported a threat 2386 | -9/Recycling | Spotter reported a threat 2429 | -9/Recycling | Spotter reported a threat 2439 | -9/Recycling | Spotter reported a threat 2470 | -9/Recycling | Spotter reported a threat 2470 | -9/Recycling | Spotter reported a threat 2470 | -9/Recycling | Spotter reported a threat 2599 | -9/Recycling | Spotter reported a threat 2611 | -9/Recycling | Spotter reported a threat 2625 | -9/Recycling | Spotter reported a threat 2639 | -9/Recycling | Spotter reported a threat 2680 | -9/Recycling | Spotter reported a threat 2694 | -9/Recycling | Spotter reported a threat 2704 | -9/Recycling | Spotter reported a threat 2723 | -9/Recycling | Build established: Commander-Mutant 2730 | -9/Recycling | Spotter reported a threat 2733 | -9/Recycling | Spotter reported a threat 2757 | -9/Recycling | Spotter reported a threat 2797 | -9/Recycling | Spotter reported a threat 2818 | -9/Recycling | Spotter reported a threat 2819 | -9/Recycling | Spotter reported a threat 2846 | -9/Recycling | Discovered new exit (range 15) 2857 | -9/Recycling | Spotter reported a threat 2887 | -9/Recycling | Spotter reported a threat 2890 | -9/Recycling | Spotter reported a threat 2900 | -9/Recycling | Spotter reported a threat 2917 | -9/Recycling | Spotter reported a threat 2917 | -9/Recycling | Spotter reported a threat 2918 | -9/Recycling | Spotter reported a threat 2948 | -9/Recycling | Spotter reported a threat 2959 | -9/Recycling | Spotter reported a threat 3010 | -9/Recycling | Spotter reported a threat 3010 | -9/Recycling | Spotter reported a threat 3010 | -9/Recycling | Spotter reported a threat 3061 | -9/Recycling | Spotter reported a threat 3061 | -9/Recycling | Spotter reported a threat 3062 | -9/Recycling | Entered Factory 3062 | -7/Factory | Accompanied by 4 allies 3062 | -7/Factory | Evolved 4 slots: Utility x2, Weapon x2 3187 | -7/Factory | Discovered new exit (range 20) 3288 | -7/Factory | Identified exit to Garrison 3289 | -7/Factory | Entered Garrison 3396 | -7/Garrison | Triggered checkpoint 3399 | -7/Garrison | Triggered checkpoint 3534 | -7/Garrison | Discovered new exit (range 12) 3536 | -7/Garrison | Build established: Hauler-Gunner 3694 | -7/Garrison | Discovered new exit (range 12) 3790 | -7/Garrison | Triggered checkpoint 3833 | -7/Garrison | Garrison Relay disabled 3870 | -7/Garrison | Discovered new exit (range 12) 3889 | -7/Garrison | Expanded RIF knowledge: Structural Interface 4078 | -7/Garrison | Triggered checkpoint 4105 | -7/Garrison | Lost 3 parts (1u2w) 4172 | -7/Garrison | Lost 4 parts (1n3w) 4182 | -7/Garrison | Phase Generator disabled 4435 | -7/Garrison | Entered Factory 4435 | -7/Factory | Accompanied by 5 allies 4560 | -7/Factory | Build established: Scavenger-Gunner 4785 | -7/Factory | Fabricated Wheel (x3) 4825 | -7/Factory | Garrison activated, responded to threat 4835 | -7/Factory | First assault squad dispatched 4876 | -7/Factory | Identified exit to Garrison 4877 | -7/Factory | Entered Garrison 4877 | -7/Garrison | Accompanied by 3 allies 5127 | -7/Garrison | Triggered checkpoint 5133 | -7/Garrison | Build established: Hauler-Gunner 5139 | -7/Garrison | Lost 3 parts (1n1u1w) 5270 | -7/Garrison | Core integrity fell below 50% 5302 | -7/Garrison | Discovered new exit (range 9) 5318 | -7/Garrison | Expanded RIF knowledge: Hotswap 5352 | -7/Garrison | Triggered checkpoint 5352 | -7/Garrison | Garrison Relay disabled 5445 | -7/Garrison | Build established: Scavenger-Gunner 5498 | -7/Garrison | Entered Factory 5498 | -6/Factory | Evolved 2 slots: Utility x2 5611 | -6/Factory | Garrison activated, responded to threat 5964 | -6/Factory | Identified exit to Garrison 5965 | -6/Factory | Entered Garrison 5992 | -6/Garrison | Phase Generator disabled 6084 | -6/Garrison | Triggered checkpoint 6113 | -6/Garrison | Garrison Relay disabled 6239 | -6/Garrison | Triggered checkpoint 6370 | -6/Garrison | Triggered checkpoint 6416 | -6/Garrison | Build established: Scavenger-Tank 6626 | -6/Garrison | Discovered new exit (range 14) 6982 | -6/Garrison | Triggered checkpoint 7176 | -6/Garrison | Garrison Relay disabled 7390 | -6/Garrison | Expanded RIF knowledge: Autooverride 7399 | -6/Garrison | Entered Factory 7579 | -6/Factory | Discovered new exit (range 18) 8314 | -6/Factory | Build established: Bothacker-Tank 8590 | -6/Factory | Lost 5 parts (1p1n1u2w) 8615 | -6/Factory | Build established: Bothacker-Gunner 8615 | -6/Factory | Core integrity fell below 50% 8668 | -6/Factory | Lost 5 parts (2n1u2w) 9722 | -6/Factory | Entered another Factory area 9722 | -5/Factory | Evolved 2 slots: Propulsion x1, Utility x1 9822 | -5/Factory | Discovered new exit (range 8) 9885 | -5/Factory | Entered Upper Caves 10122 | -5/Upper Caves | Learned 4 Factory zone layouts 10124 | -5/Upper Caves | Discovered new exit (range 8) 10145 | -5/Upper Caves | Entered another Upper Caves area 10436 | -5/Upper Caves | Learned Factory stockpile data 10447 | -5/Upper Caves | Learned 4 Factory zone layouts 10854 | -5/Upper Caves | Discovered new exit (range 7) 10863 | -5/Upper Caves | Entered Zhirov 10863 | -5/Zhirov | Discovered new exit (range 3) 10890 | -5/Zhirov | Met Zhirov 10923 | -5/Zhirov | Learned location of Quarantine (-3) 10923 | -5/Zhirov | Learned location of Testing (-2) 10923 | -5/Zhirov | Learned location of Command (-1) 10958 | -5/Zhirov | Zhirov requested help retrieving the SGEMP Prototype 10989 | -5/Zhirov | Build established: Bothacker-Mutant 10992 | -5/Zhirov | Found Alien Artifact 11023 | -5/Zhirov | Identified Integrated Dissipator 11023 | -5/Zhirov | Installed Integrated Dissipator, increased core heat dissipation (+20) 11037 | -5/Zhirov | Found Alien Artifact 11038 | -5/Zhirov | Identified Transdimensional Reconstructor 11038 | -5/Zhirov | Warped through subspace 11511 | -5/Zhirov | Entered Proximity Caves 11619 | -4/Proximity Caves | Attracted the attention of an 0b10 checkpoint 11811 | -4/Proximity Caves | Build established: Bothacker-Gunner 12041 | -4/Proximity Caves | Discovered new exit (range 11) 12062 | -4/Proximity Caves | Entered Factory 12062 | -4/Factory | Evolved 2 slots: Propulsion x1, Utility x1 12111 | -4/Factory | Garrison activated, responded to threat 12167 | -4/Factory | Lost 12 parts (1p5n2u4w) 12342 | -4/Factory | Lost 7 parts (1p2n1u3w) 12424 | -4/Factory | Build established: Bothacker-Mutant 12517 | -4/Factory | Core integrity fell below 50% 12568 | -4/Factory | Core integrity fell below 20% 12579 | -4/Factory | Destroyed by G-73 Enforcer with Phase Gun Last Messages --------------- 12546_ G-73 Enforcer IFF system glitched. 12549_ Penetrated by Slug. 12549_ Imp. Treads destroyed. 12553_ Penetrated by Slug. 12553_ Critical hit. 12553_ Hvy. Neutron Cannon destroyed. 12558_ Flexi-carbon Leg destroyed. 12559_ Slug penetrates Wall. 12561_ U-05 Engineer lays Concrete. 12562_ Penetrated by Slug. 12563_ System corrupted: Matter fused (-7). 12563_ U-05 Engineer lays Concrete. 12565_ Penetrated by Slug. 12567_ U-05 Engineer builds a Wall. 12567_ 0b10 Decoder Chip [Skirmisher] destroyed. 12567_ Penetrated by Slug. 12573_ Imp. Targeting Computer destroyed. 12573_ Penetrated by Slug. 12573_ Lrg. Storage Unit destroyed. 12576_ Penetrated by Slug. Map ----- +----------------------------------------------------+ | ?????????????????????????????????????????????????? | | ?????????????????????????????????? ??????????? | | ?????????????????????????????????# #?????????? | | ?????????????????????????????????# #?????????? | | ?????????????????????????????????# #?????????? | | ?????????????????????????????????# #?????????? | | ?????????????????????????????????# #?????????? | | ?????????????????????????????????# #?????????? | | ?????????????????????????????????# #?????????? | | ?????????????????????????????????# #?????????? | | ?????????????????????????????????# #?????????? | | ??????????????????????????######## #?????????? | | ?????????????????????###### #?????????? | | ?????????????????????# #?????????? | | ?????????????????????# #?????????? | | ?????????????????????# #?????????? | | ??????????????????????# #?# #?????????? | | ??????????????????????# #?# #?????????? | | ?????????????##########;### #####?????? | | ?????????????# # = #####"## ###???? | | ?????????????# # %% "#############+##? | | ????????????## w # " #? | | ????????????#; # " #? | | ????????????## !# !# #? | | ?????????????# # %# #? | | ?????????????# g@# ! # ""#? | | ?????????????# Y # %!#**! !!! ""#? | | ?????????????# ; %=+ % !! !%G#? | | ?????????????# # !! %# !! !! ""#? | | ?????????????# # ! %!#%% ""#? | | ?????????????# / !#! #? | | ?????????????#############;#""#+##"##############? | | ???????????????????????# ! # ###???????? | | ???????????????????????# ### #????????? | | ???????????????????????# #??##????????? | | ???????????????????????# #????????????? | | ???????????????????????# #????????????? | | ???????????????????????# #????????????? | | ???????????????????????# #????????????? | | ???????????????????????# #????????????? | | ???????????????????????# #????????????? | | ???????????????????????# #????????????? | | ???????????????????????# #????????????? | | ???????????????????????# #????????????? | | ???????????????????????##############????????????? | | ?????????????????????????????????????????????????? | | ?????????????????????????????????????????????????? | | ?????????????????????????????????????????????????? | | ?????????????????????????????????????????????????? | | ?????????????????????????????????????????????????? | +----------------------------------------------------+ Best States ------------- Heat Dissipation 82 Energy Generation 25 Energy Capacity 340 Matter Stores 600 Matter Capacity 600 Sight Range 22 Terrain Scan Density 10 Armor Coverage 225 Resistance: TH 25 Propulsion Shielding 66 Weapon Shielding 90 Evasion (%) 40 Targeting Accuracy 11 Target Analysis 5 Armor Integrity Analysis 50 Recoil Reduction 2 Kinecelleration 30 Relay Coupler Types 41 Relay Coupler Value 1 Item Schematics ----------------- Lrg. Storage Unit | -9/Materials | Scanalyzed Wheel | -9/Materials | Scanalyzed Assault Drone Bay | -5/Zhirov | Free Exp. Heat Sink | -5/Zhirov | Free Exp. Optical Array | -5/Zhirov | Free Imp. Arc Thrower | -5/Zhirov | Free Robot Schematics ------------------ None Fabricated ------------ Wheel | x3 | -7/Factory Alien Tech Used ----------------- Integrated Dissipator Transdimensional Reconstructor Achievements -------------- Hey, That's Mine! Leap Before You Look Subspace Traveler The Science Guy \\IAMDERELICT Challenges ------------ None Game ------ Seed CoolantSurgeSplitter Manual? 0 Play Time 02:18:50 Cumulative 48.9 hours Start 2020.10.13 @ 17:39:31 End 2020.10.13 @ 20:57:26 Sessions 3 Manual Loads 0 Difficulty Rogue Special Mode None Game No. 53 Rogue 53 Adventurer 0 Explorer 0 Win Type - Total 2 Types 2/0/0/0/0/0/0/0/0 Lore% 36 Gallery% 52 Achievement% 37 Wizard Run 0 Options --------- ASCII 0 Keyboard 1 Movement Numpad Keybinds 0 Fullscreen 2 Font 18/SmallcapsGlow Map View 76x50 Tactical HUD 1 Map Filters NONE Filters NONE Steam 1 RUN: dbc61f3e-785d-4f13-bf5d-c302e14bcb60